bitfinex-derivatives/quotes_ETHF0:USTF0_20250214
["timestamp","ask_amount","ask_price","bid_price","bid_amount"]
[1739496576131,0.00558722,2680.2,2679.9,0.571]
[1739496576328,0.75169722,2680.2,2680.0,0.74614]
[1739496577625,0.00558722,2680.2,2680.0,0.74614]
[1739496577826,0.00558722,2680.2,2680.1,0.74612]
[1739496578430,0.00558722,2680.2,2680.0,0.74613]
[1739496578834,0.00558722,2680.2,2680.1,0.74612]
[1739496579331,0.00558722,2680.2,2679.9,0.571]
[1739496579533,0.00558722,2680.2,2680.0,0.74613]
[1739496579735,0.00558722,2680.2,2680.1,0.74612]
[1739496580821,0.00558722,2680.2,2680.0,0.74613]
[1739496581225,0.75168722,2680.2,2680.0,0.74613]
[1739496581426,0.00558722,2680.2,2680.0,0.74613]
[1739496582537,0.00558722,2680.2,2679.9,1.92481822]
[1739496582735,0.00558722,2680.2,2680.0,0.74613]
[1739496582936,0.00558722,2680.2,2680.0,0.74614]
[1739496583928,0.00558722,2680.2,2680.1,0.74612]
[1739496587043,0.00558722,2680.2,2679.9,1.92481822]
[1739496587342,0.00558722,2680.2,2680.1,0.74612]
[1739496587542,0.00558722,2680.2,2679.9,1.92481822]
[1739496587742,0.00558722,2680.2,2680.0,0.74613]
[1739496588443,0.75168722,2680.2,2680.0,0.74613]
[1739496588737,0.75168722,2680.2,2679.9,1.92481822]
[1739496588945,0.74613,2680.1,2679.9,1.92481822]
[1739496589745,0.74614,2680.1,2679.9,2.67098822]
[1739496591445,0.74614,2680.1,2679.9,1.31717]
[1739496591641,1.94980544,2680.2,2679.8,1.1607]
[1739496591842,0.74618,2679.9,2679.8,0.5834]
[1739496592049,2.35918,2679.9,2679.8,0.5834]
[1739496592445,1.613,2679.9,2679.8,0.5834]
[1739496594040,2.35918,2679.9,2679.8,0.5834]
[1739496594246,0.74621,2679.8,2679.7,0.00376128]
[1739496594441,2.69012822,2679.8,2679.7,0.00376128]
[1739496597445,0.5554,2680.0,2679.9,0.74618]
[1739496597642,0.00558722,2680.2,2680.1,0.74612]
[1739496598750,0.00558722,2680.2,2680.1,2.09993822]
[1739496599648,0.00558722,2680.2,2680.1,0.74612]
[1739496599944,0.00558722,2680.2,2680.0,2.43053]
[1739496600148,0.00558722,2680.2,2680.1,0.74612]
[1739496601548,4.8208,2680.6,2680.0,7.55346213]
[1739496601749,4.8208,2680.6,2680.2,3.2078]
[1739496601943,0.5983,2680.7,2680.2,3.2078]
[1739496601944,0.5983,2680.7,2680.5,0.74601]
[1739496602242,3.50855224,2681.2,2680.6,4.62566213]
[1739496602243,3.2078,2681.2,2680.6,4.62566213]
[1739496602448,2.93306213,2681.4,2680.9,2.93306213]
[1739496602449,0.5505,2681.4,2680.9,2.93306213]
[1739496602640,0.00558722,2681.2,2681.1,0.74585]
[1739496603346,0.00558722,2681.2,2681.1,3.95365]
[1739496606851,1.613,2681.9,2681.5,0.74572]
[1739496607057,1.613,2681.9,2681.6,0.546]
[1739496607553,2.35861,2682.0,2681.6,1.29169]
[1739496607753,3.95338,2682.1,2681.7,0.74568]
[1739496608053,3.95338,2682.1,2681.7,0.74566]
[1739496608054,1.613,2682.0,2681.7,0.74566]
[1739496608257,0.74564,2681.9,2681.6,0.546]
[1739496608552,2.35861,2682.0,2681.6,1.2917]
[1739496609553,1.613,2682.0,2681.7,0.74567]
[1739496610147,1.613,2682.0,2681.8,0.74564]
[1739496610754,1.613,2682.0,2681.6,0.546]
[1739496610956,1.613,2682.0,2681.7,3.2078]
[1739496611454,2.35861,2682.0,2681.7,3.95346]
[1739496611646,1.613,2682.0,2681.8,0.74565]
[1739496612355,1.613,2682.0,2681.8,0.74564]
[1739496612652,1.613,2682.0,2681.9,0.74562]
[1739496613054,1.613,2682.0,2681.8,0.74564]
[1739496613556,1.613,2682.0,2681.7,3.2078]
[1739496613760,1.613,2682.0,2681.8,0.74565]
[1739496614256,1.613,2682.0,2681.9,0.74562]
[1739496614858,1.613,2682.0,2681.7,3.2078]
[1739496615160,1.613,2682.0,2681.8,0.74563]
[1739496615558,1.613,2682.0,2681.7,3.2078]
[1739496615859,2.35861,2682.0,2681.7,3.2078]
[1739496616157,2.35861,2682.0,2681.8,0.74564]
[1739496616359,1.613,2682.0,2681.8,0.74564]
[1739496616555,1.613,2682.0,2681.7,3.2078]
[1739496616556,1.613,2682.0,2681.9,0.74562]
[1739496616957,2.35861,2682.0,2681.8,0.74565]
[1739496617153,1.613,2682.0,2681.7,3.2078]
[1739496617359,0.74571,2681.6,2681.5,0.00558722]
[1739496618260,2.35771,2681.6,2681.5,0.00558722]
[1739496619159,7.67280105,2681.6,2681.0,3.2078]
[1739496619466,0.74585,2681.1,2681.0,3.2078]
[1739496619660,1.612,2681.1,2681.0,3.2078]
[1739496620258,2.698,2681.1,2681.0,3.2078]
[1739496620458,3.44385,2681.1,2681.0,3.2078]
[1739496620659,2.698,2681.1,2681.0,3.2078]
[1739496620868,2.698,2681.1,2681.0,3.95367]
[1739496621164,2.1566,2681.1,2681.0,3.95367]
[1739496621361,0.5446,2681.4,2681.3,0.74579]
[1739496621561,3.2078,2681.5,2681.1,2.93306213]
[1739496622075,3.2078,2681.5,2681.4,0.74576]
[1739496622660,3.2078,2681.8,2681.6,0.74569]
[1739496623162,3.95346,2681.8,2681.4,0.74574]
[1739496623367,3.95346,2681.8,2681.2,0.5413]
[1739496623368,0.74573,2681.6,2681.2,1.28711]
[1739496623562,4.04636213,2681.7,2681.0,3.2078]
[1739496623764,0.7458,2681.3,2681.0,3.2078]
[1739496623970,0.6004,2681.2,2681.0,3.2078]
[1739496624769,0.74585,2681.1,2681.0,3.2078]
[1739496624970,1.29265,2681.1,2681.0,3.2078]
[1739496625261,2.90465,2681.1,2681.0,3.2078]
[1739496625466,2.7253,2681.1,2681.0,3.2078]
[1739496625666,2.1588,2681.1,2681.0,3.2078]
[1739496625868,2.1588,2681.1,2681.0,0.74587]
[1739496626169,2.1588,2681.1,2680.8,0.00558722]
[1739496626367,2.1588,2681.1,2680.9,0.74589]
[1739496626771,2.1588,2681.1,2680.8,0.00558722]
[1739496627070,2.1588,2681.1,2680.8,0.75149722]
[1739496627571,2.1588,2681.1,2680.9,0.74589]
[1739496627765,2.1588,2681.1,2680.8,0.00558722]
[1739496627971,2.1588,2681.1,2680.8,0.75149722]
[1739496628273,2.1588,2681.1,2680.9,0.74589]
[1739496628970,2.90465,2681.1,2680.8,0.75150722]
[1739496629471,2.1588,2681.1,2680.8,0.00558722]
[1739496629669,0.7459,2680.9,2680.8,0.00558722]
[1739496631071,5.09186213,2681.1,2680.6,3.2078]
[1739496631271,0.74605,2680.4,2680.1,3.499]
[1739496631468,2.93306213,2680.8,2680.1,0.563]
[1739496631469,0.547,2680.3,2680.1,0.563]
[1739496631873,0.547,2680.3,2680.2,0.7461]
[1739496632372,0.547,2680.3,2680.1,3.7708]
[1739496632773,0.74611,2680.2,2680.0,0.00376128]
[1739496633272,0.74612,2680.1,2680.0,0.00376128]
[1739496633672,2.35812,2680.1,2680.0,0.00376128]
[1739496634467,5.29118213,2680.1,2680.0,0.00376128]
[1739496634680,5.87188213,2680.1,2680.0,0.00376128]
[1739496634871,2.93882,2680.1,2680.0,0.00376128]
[1739496638469,2.1927,2680.1,2680.0,0.00376128]
[1739496638776,1.612,2680.1,2680.0,0.00376128]
[1739496638979,2.35812,2680.1,2680.0,0.00376128]
[1739496644876,0.547,2680.3,2680.0,3.21156128]
[1739496645083,0.00558722,2680.5,2680.4,0.74604]
[1739496645278,2.36361722,2680.5,2680.2,0.74609]
[1739496645581,0.74604,2680.4,2680.1,1.29911]
[1739496645979,1.61758722,2680.5,2680.1,0.553]
[1739496646980,0.74606,2680.4,2680.1,1.29911]
[1739496647284,1.61758722,2680.5,2680.1,0.553]
[1739496647485,0.74606,2680.4,2680.1,1.29911]
[1739496649183,0.74612,2680.1,2680.0,3.21156128]
[1739496649385,2.35812,2680.1,2680.0,0.00376128]
[1739496651081,0.74621,2679.8,2679.7,0.5519]
[1739496652182,0.74621,2679.8,2679.1,2.93306213]
[1739496652183,2.93306213,2679.8,2679.0,3.2078]
[1739496652486,2.93306213,2679.5,2679.0,3.763]
[1739496652681,0.74636,2679.3,2679.0,3.763]
[1739496653288,2.35834,2679.4,2679.0,3.763]
[1739496654578,2.35834,2679.4,2679.0,4.50942]
[1739496655485,3.2078,2679.3,2679.0,0.5552]
[1739496655685,0.74636,2679.3,2679.0,0.5552]
[1739496656689,1.612,2679.4,2679.0,0.5552]
[1739496656885,2.35833,2679.4,2679.0,1.30163]
[1739496657685,1.612,2679.4,2679.0,0.5552]
[1739496657886,2.35832,2679.4,2679.0,4.5094]
[1739496658186,2.35832,2679.4,2679.1,0.5932]
[1739496658589,0.74635,2679.3,2679.1,0.5932]
[1739496658991,0.74638,2679.2,2679.1,0.5932]
[1739496660191,0.74636,2679.3,2679.1,0.5932]
[1739496660491,1.612,2679.4,2679.1,0.5932]
[1739496660689,0.74638,2679.2,2679.1,0.5932]
[1739496660992,1.612,2679.4,2679.0,0.5552]
[1739496661194,1.612,2679.4,2678.8,0.5552]
[1739496661387,1.612,2679.4,2678.9,0.5906]
[1739496661588,0.74642,2679.1,2678.9,0.5906]
[1739496661990,0.74639,2679.2,2678.9,1.33705]
[1739496662695,4.8198,2679.4,2678.9,0.5906]
[1739496662890,0.74639,2679.2,2678.9,1.33706]
[1739496663298,4.8198,2679.4,2678.9,0.5906]
[1739496663497,0.74639,2679.2,2678.9,1.33706]
[1739496663798,0.74639,2679.2,2678.9,0.5906]
[1739496664189,0.74641,2679.1,2678.9,0.5906]
[1739496665495,0.74643,2679.0,2678.9,0.5906]
[1739496665690,2.35943,2679.0,2678.9,0.5906]
[1739496666486,0.74646,2678.9,2678.8,0.5552]
[1739496667399,0.74651,2678.7,2678.6,0.5986]
[1739496668602,0.74657,2678.5,2678.4,3.2078]
[1739496670301,2.35955,2678.6,2678.4,3.2078]
[1739496671203,1.613,2678.6,2678.4,3.2078]
[1739496671399,0.74657,2678.5,2678.4,3.2078]
[1739496672101,12.1238,2678.5,2677.2,3.2078]
[1739496672297,4.54606213,2678.6,2677.2,3.2078]
[1739496672298,3.2078,2677.9,2677.5,1.1218]
[1739496672499,2.35977,2677.8,2677.5,1.1218]
[1739496672891,2.35977,2677.8,2676.5,3.2078]
[1739496672892,0.74706,2676.8,2676.5,3.2078]
[1739496673093,3.2078,2676.9,2676.4,1.1294]
[1739496673398,1.613,2676.8,2676.4,1.1294]
[1739496673602,2.36005,2676.8,2676.4,1.1294]
[1739496673904,0.74712,2676.6,2676.4,1.1294]
[1739496674097,1.613,2676.8,2676.4,1.1294]
[1739496674300,0.74713,2676.5,2676.4,1.1294]
[1739496674617,0.74709,2676.7,2676.4,1.1294]
[1739496674805,1.613,2676.8,2676.4,1.1294]
[1739496675297,0.74709,2676.7,2676.4,1.1294]
[1739496675503,3.95491,2676.6,2676.4,1.1294]
[1739496675701,3.2078,2676.6,2676.4,1.1294]
[1739496677606,3.95491,2676.6,2676.4,1.1294]
[1739496677798,3.2078,2676.6,2676.4,1.1294]
[1739496678000,3.95491,2676.6,2676.4,1.1294]
[1739496678304,0.74713,2676.5,2676.4,1.1294]
[1739496678603,0.74717,2676.4,2676.0,2.93306213]
[1739496678804,1.614,2676.4,2676.0,0.5561]
[1739496679002,3.95504,2676.1,2676.0,0.5561]
[1739496680795,6.14086213,2676.1,2675.3,2.936]
[1739496681000,3.2078,2675.6,2675.3,0.5561]
[1739496681201,0.5729,2676.3,2675.4,2.93306213]
[1739496681202,3.2078,2675.9,2675.4,2.93306213]
[1739496681399,2.93306213,2676.4,2675.9,0.74727]
[1739496681400,1.616,2676.1,2675.9,0.74727]
[1739496681600,1.616,2676.1,2676.0,1.1704]
[1739496682203,1.616,2676.1,2676.0,0.5781]
[1739496682411,0.74735,2675.7,2675.5,3.5283]
[1739496682911,1.619,2675.6,2675.5,3.5283]
[1739496684109,3.2078,2675.8,2675.5,4.27569]
[1739496684899,3.2078,2675.8,2675.6,0.74736]
[1739496685104,3.2078,2675.8,2675.7,3.68041213]
[1739496685911,1.619,2676.1,2675.8,0.7473]
[1739496686107,2.36625,2676.1,2675.9,0.5835]
[1739496686418,0.74727,2676.0,2675.9,0.5835]
[1739496686719,1.619,2676.1,2675.9,0.5835]
[1739496686913,2.36627,2676.1,2675.9,0.5835]
[1739496687217,1.619,2676.1,2675.6,3.2078]
[1739496687404,0.74735,2675.7,2675.6,3.2078]
[1739496687815,2.36735,2675.7,2675.6,3.2078]
[1739496688018,2.36735,2675.7,2675.5,0.5923]
[1739496688314,0.74738,2675.6,2675.5,0.5923]
[1739496689318,1.62,2675.7,2675.5,0.5923]
[1739496689518,2.36737,2675.7,2675.5,0.5923]
[1739496689814,0.74738,2675.6,2675.5,0.5923]
[1739496690412,3.95518,2675.6,2675.5,0.5923]
[1739496690713,3.2078,2675.6,2675.4,0.5713]
[1739496690914,1.62,2675.7,2675.4,0.5713]
[1739496691414,1.62,2675.7,2675.5,0.7474]
[1739496691917,1.62,2675.7,2675.4,0.5713]
[1739496692123,0.74741,2675.5,2675.4,0.5713]
[1739496692815,3.2078,2675.6,2675.4,0.5713]
[1739496693617,3.9552,2675.6,2675.4,0.5713]
[1739496693818,0.74741,2675.5,2675.4,0.5713]
[1739496694523,3.2078,2675.6,2675.4,0.5713]
[1739496694925,3.2078,2675.6,2675.5,0.74741]
[1739496695127,1.62,2675.6,2675.5,0.74739]
[1739496695319,1.62,2675.6,2675.5,1.31699]
[1739496696027,3.2078,2675.9,2675.5,0.5696]
[1739496696324,3.2078,2675.9,2675.8,0.74732]
[1739496697339,3.2078,2676.2,2676.1,0.74724]
[1739496697639,1.623,2676.5,2676.4,0.74714]
[1739496698337,1.623,2676.5,2676.4,3.68020213]
[1739496698529,1.62859764,2676.9,2676.6,0.74709]
[1739496698728,1.62859764,2676.9,2676.4,3.49546213]
[1739496698931,2.37562764,2676.9,2676.5,0.74712]
[1739496699935,1.62859764,2676.9,2676.4,3.49546213]
[1739496700536,2.37562764,2676.9,2676.4,3.49546213]
[1739496701036,2.37562764,2676.9,2676.5,0.74712]
[1739496701232,2.37562764,2676.9,2676.4,4.24259213]
[1739496701435,0.74704,2676.8,2676.4,3.49546213]
[1739496701633,3.9549,2676.6,2676.4,3.49546213]
[1739496701829,3.2078,2676.6,2676.4,3.49546213]
[1739496702037,5.58342764,2676.9,2676.5,0.74712]
[1739496702633,4.83639764,2676.9,2676.5,0.7471]
[1739496703043,5.58341764,2676.9,2676.5,0.7471]
[1739496703529,4.83639764,2676.9,2676.5,0.7471]
[1739496703938,4.83639764,2676.9,2676.5,0.74713]
[1739496704338,5.58341764,2676.9,2676.5,0.74713]
[1739496705840,3.21339764,2676.9,2676.4,3.49546213]
[1739496706040,4.83539764,2676.9,2676.4,3.49546213]
[1739496706439,5.58241764,2676.9,2676.5,0.74713]
[1739496706741,4.83539764,2676.9,2676.4,3.49546213]
[1739496707043,0.74706,2676.8,2676.5,0.74712]
[1739496707341,4.83539764,2676.9,2676.6,0.74709]
[1739496707836,5.58241764,2676.9,2676.4,3.49546213]
[1739496708030,5.58241764,2676.9,2676.5,0.74711]
[1739496708233,4.83539764,2676.9,2676.6,0.74709]
[1739496708436,4.83539764,2676.9,2676.4,3.49546213]
[1739496708836,0.74709,2676.7,2676.4,3.49546213]
[1739496709242,0.74712,2676.6,2676.4,3.49546213]
[1739496709439,1.1523,2676.8,2676.4,0.5624]
[1739496709743,3.95495,2676.5,2676.2,0.5615]
[1739496709930,2.37317,2676.4,2676.2,0.5615]
[1739496710336,1.626,2676.4,2675.8,2.93306213]
[1739496710534,3.2078,2676.2,2675.8,4.23477213]
[1739496710735,3.95502,2676.2,2675.9,0.74729]
[1739496710940,3.2078,2676.2,2675.8,3.48746213]
[1739496711241,3.95501,2676.2,2675.8,4.23477213]
[1739496711744,3.95502,2676.2,2675.8,4.23476213]
[1739496712045,3.2078,2676.2,2675.8,4.23476213]
[1739496712348,3.2078,2675.9,2675.2,3.2078]
[1739496712643,3.2078,2675.6,2675.3,0.5572]
[1739496712841,3.9552,2675.6,2675.3,0.5572]
[1739496713153,3.20296742,2675.6,2675.3,1.30466]
[1739496713438,0.00559764,2675.7,2675.4,2.93306213]
[1739496713746,0.00559764,2675.7,2675.6,0.74738]
[1739496716241,0.00559764,2675.7,2675.6,3.95518]
[1739496718347,0.00559764,2675.7,2675.6,0.74738]
[1739496719046,0.00559764,2675.7,2675.6,3.95518]
[1739496719445,3.2078,2676.2,2676.1,0.74724]
[1739496719648,3.2078,2676.2,2676.1,3.68030213]
[1739496720645,3.51906213,2677.1,2676.1,3.68030213]
[1739496720646,0.00559764,2676.4,2676.3,0.74718]
[1739496721050,0.00559764,2676.4,2676.3,1.31858]
[1739496722348,0.00559764,2676.4,2676.2,3.95498]
[1739496722542,0.58369764,2676.4,2676.2,3.2078]
[1739496722742,1.33085764,2676.4,2676.1,0.74723]
[1739496723048,1.33085764,2676.4,2675.9,0.00559764]
[1739496723049,0.74719,2676.3,2676.0,0.74725]
[1739496723348,0.58369764,2676.4,2675.9,0.00559764]
[1739496723747,0.58369764,2676.4,2675.9,0.55209764]
[1739496723941,0.58369764,2676.4,2676.3,0.74718]
[1739496724543,0.00559764,2676.4,2676.3,0.74718]
[1739496725349,0.00559764,2676.4,2676.3,3.95498]
[1739496727145,0.00559764,2676.4,2676.1,2.93306213]
[1739496727648,0.00559764,2676.4,2675.9,3.48809764]
[1739496727853,0.7472,2676.3,2676.0,0.74726]
[1739496728649,0.74722,2676.2,2675.9,4.23537764]
[1739496728851,0.74722,2676.2,2676.0,0.74727]
[1739496729048,0.74722,2676.2,2675.9,4.23537764]
[1739496729353,0.74725,2676.1,2675.9,1.29937764]
[1739496729749,0.74725,2676.1,2675.9,0.55209764]
[1739496730142,1.635,2676.2,2675.9,0.55209764]
[1739496730543,0.74727,2676.0,2675.9,0.00559764]
[1739496731349,1.635,2676.2,2676.1,0.74724]
[1739496731554,1.635,2676.2,2675.9,0.00559764]
[1739496731754,1.635,2676.2,2676.1,0.74724]
[1739496732548,1.635,2676.2,2676.0,0.74725]
[1739496732755,0.74727,2676.0,2675.9,0.00559764]
[1739496735159,5.59002,2676.2,2675.9,0.75286764]
[1739496735354,4.8428,2676.2,2675.9,0.00559764]
[1739496735554,4.8428,2676.2,2676.1,0.74724]
[1739496735863,4.8428,2676.2,2675.9,0.57069764]
[1739496736053,4.8428,2676.2,2676.1,0.74724]
[1739496736567,0.00559764,2676.4,2676.1,2.93306213]
[1739496736856,0.00559764,2676.4,2676.3,0.74718]
[1739496737456,0.00559764,2676.4,2676.3,1.31268]
[1739496738463,0.00559764,2676.4,2676.3,4.52048]
[1739496739870,0.00559764,2676.4,2676.2,0.5572]
[1739496740367,0.00559764,2676.4,2676.2,1.30441]
[1739496740856,0.00559764,2676.4,2676.2,0.5572]
[1739496741064,0.00559764,2676.4,2676.3,0.74718]
[1739496741364,0.00559764,2676.4,2676.3,1.34818]
[1739496743062,0.00559764,2676.4,2676.3,0.601]
[1739496743260,0.75275764,2676.4,2676.3,0.601]
[1739496743569,0.00559764,2676.4,2676.3,1.34818]
[1739496744568,7.64e-06,2676.4,2676.3,4.55598]
[1739496745160,7.64e-06,2676.4,2676.3,45.35598]
[1739496746966,7.64e-06,2676.4,2676.3,46.99298]
[1739496748368,7.64e-06,2676.4,2676.3,6.19298]
[1739496749962,7.64e-06,2676.4,2676.3,9.12898]
[1739496750168,7.64e-06,2676.4,2676.3,15.12898]
[1739496750368,7.64e-06,2676.4,2676.3,12.19298]
[1739496750763,0.5557,2677.6,2677.4,0.74687]
[1739496750965,0.5557,2677.6,2677.4,3.2078]
[1739496751168,3.2078,2678.2,2678.1,0.74668]
[1739496751866,3.2078,2678.2,2678.1,3.67974213]
[1739496752261,3.2078,2678.2,2678.1,2.93306213]
[1739496753172,0.00559764,2678.4,2678.1,3.67973213]
[1739496753476,0.00559764,2678.4,2678.1,3.51046213]
[1739496753974,0.74664,2678.3,2678.1,3.51046213]
[1739496754667,0.00559764,2678.4,2678.1,3.51046213]
[1739496754873,0.75219764,2678.4,2678.1,4.25714213]
[1739496755074,0.75219764,2678.4,2678.1,3.51046213]
[1739496755273,0.74665,2678.2,2678.1,0.5774]
[1739496755570,0.74671,2678.0,2677.9,0.00559764]
[1739496755772,0.00559764,2678.4,2677.9,0.00559764]
[1739496755971,0.74668,2678.1,2677.9,0.00559764]
[1739496756674,0.74667,2678.2,2677.9,0.00559764]
[1739496757070,0.7467,2678.1,2677.9,0.00559764]
[1739496757270,0.74671,2678.0,2677.9,0.00559764]
[1739496757766,3.95451,2678.0,2677.9,0.00559764]
[1739496761774,6.88757213,2678.0,2677.9,0.00559764]
[1739496761973,0.7469,2677.3,2677.2,0.5453]
[1739496762572,1.638,2677.8,2677.2,0.5453]
[1739496762880,3.2078,2677.7,2677.2,1.29222]
[1739496763073,1.638,2677.8,2677.2,0.55089764]
[1739496763279,0.7469,2677.3,2677.2,0.00559764]
[1739496763675,0.74687,2677.5,2677.2,0.00559764]
[1739496763879,0.74687,2677.5,2677.2,0.75251764]
[1739496764281,1.638,2677.8,2677.2,0.00559764]
[1739496764481,0.74688,2677.4,2677.2,0.00559764]
[1739496764781,1.638,2677.8,2677.2,0.00559764]
[1739496764980,0.74686,2677.5,2677.2,0.75251764]
[1739496766481,1.636,2677.7,2677.2,0.75251764]
[1739496766676,0.74688,2677.4,2677.2,0.75251764]
[1739496766879,0.74688,2677.4,2677.2,0.00559764]
[1739496767074,0.7469,2677.3,2677.2,0.00559764]
[1739496767269,1.636,2677.7,2677.2,0.00559764]
[1739496767473,0.7469,2677.3,2677.2,0.00559764]
[1739496767679,1.636,2677.7,2677.2,0.00559764]
[1739496767879,1.636,2677.7,2677.2,0.75251764]
[1739496768081,0.7469,2677.3,2677.2,0.00559764]
[1739496769275,3.9547,2677.3,2677.2,0.00559764]
[1739496769481,5.5917,2677.3,2677.2,0.00559764]
[1739496769877,6.6413,2677.3,2677.2,0.00559764]
[1739496772672,3.9547,2677.3,2677.2,0.00559764]
[1739496772978,0.74677,2677.8,2677.2,2.93865977]
[1739496773185,0.74678,2677.8,2677.4,3.2078]
[1739496773382,0.74675,2677.9,2677.5,1.33593]
[1739496773583,0.74675,2677.9,2677.5,1.92663]
[1739496773780,0.5955,2678.0,2677.5,1.1798]
[1739496773981,0.74678,2677.8,2677.5,1.1798]
[1739496774185,0.74678,2677.8,2677.5,1.92664]
[1739496774385,0.5955,2678.0,2677.5,1.1798]
[1739496774587,0.74679,2677.7,2677.5,0.5891]
[1739496774781,3.2078,2677.8,2677.5,0.5891]
[1739496775088,6.14086213,2677.8,2677.2,0.00559764]
[1739496775381,1.639,2677.9,2677.2,0.00559764]
[1739496775382,0.7469,2677.3,2677.2,0.00559764]
[1739496775585,2.3899,2677.3,2677.2,0.00559764]
[1739496775782,2.9604,2677.3,2677.2,0.00559764]
[1739496779190,3.02131102,2677.3,2677.2,0.00559764]
[1739496781186,0.7471,2676.6,2676.5,0.593]
[1739496782290,3.2078,2676.7,2676.5,0.593]
[1739496782483,0.00559764,2676.8,2676.5,0.593]
[1739496782484,1.64759764,2676.8,2676.5,0.593]
[1739496782687,0.00559764,2676.8,2676.7,0.74707]
[1739496783495,0.00559764,2676.8,2676.5,1.3401]
[1739496783692,0.75265764,2676.8,2676.5,1.3401]
[1739496784596,0.00559764,2676.8,2676.5,0.593]
[1739496784795,0.74708,2676.7,2676.5,0.593]
[1739496784995,0.7471,2676.6,2676.5,0.593]
[1739496785390,5.59987,2676.7,2676.5,0.593]
[1739496785594,4.8528,2676.7,2676.5,0.593]
[1739496785791,1.645,2676.7,2676.6,0.7471]
[1739496786498,1.645,2676.7,2676.5,1.34011]
[1739496788097,0.00559764,2676.8,2676.5,0.593]
[1739496788398,0.00559764,2676.8,2676.7,0.74707]
[1739496789296,0.00559764,2676.8,2676.5,0.593]
[1739496789495,0.7471,2676.6,2676.5,0.593]
[1739496790199,0.74718,2676.3,2676.2,0.5792]
[1739496790501,1.643,2676.6,2676.2,1.1527]
[1739496790904,0.74717,2676.4,2676.2,1.1527]
[1739496791402,0.74714,2676.5,2676.2,1.1527]
[1739496791601,2.39012,2676.6,2676.3,0.74717]
[1739496791999,1.643,2676.6,2676.2,1.1527]
[1739496792504,0.74717,2676.4,2676.2,1.1527]
[1739496793903,0.74717,2676.4,2676.2,1.89991]
[1739496794304,0.74717,2676.4,2676.2,1.1527]
[1739496794804,1.643,2676.6,2676.2,1.1527]
[1739496795007,0.74714,2676.5,2676.3,0.74717]
[1739496795206,2.3901,2676.6,2676.2,1.1527]
[1739496795508,0.74715,2676.5,2676.2,1.8999]
[1739496795699,1.643,2676.6,2676.2,1.1527]
[1739496795901,2.39012,2676.6,2676.4,0.74715]
[1739496796306,0.74713,2676.5,2676.3,0.74717]
[1739496796804,1.643,2676.6,2676.2,1.1527]
[1739496796999,2.39012,2676.6,2676.3,0.74717]
[1739496797199,1.643,2676.6,2676.2,1.1527]
[1739496797507,0.74714,2676.5,2676.2,1.89989]
[1739496797905,1.643,2676.6,2676.2,1.1527]
[1739496798204,1.643,2676.6,2676.5,0.74713]
[1739496798698,0.74709,2676.7,2676.5,0.74713]
[1739496799006,0.74709,2676.7,2676.5,0.74711]
[1739496799007,1.637,2676.6,2676.5,0.74711]
[1739496799897,3.2078,2676.7,2676.2,1.1527]
[1739496800105,0.00559764,2676.8,2676.7,0.74707]
[1739496800405,3.2078,2677.4,2677.3,0.7469]
[1739496800802,0.74684,2677.6,2677.2,0.74692]
[1739496800998,0.74684,2677.6,2677.3,1.1678]
[1739496801198,3.2078,2677.6,2677.3,1.1678]
[1739496801403,1.639,2677.7,2677.3,1.1678]
[1739496801404,1.64459764,2677.7,2677.3,1.1678]
[1739496801599,1.64459764,2677.7,2677.5,0.74684]
[1739496801806,1.64459764,2677.7,2677.4,0.74687]
[1739496802107,2.39140764,2677.7,2677.3,1.91469]
[1739496802709,1.64459764,2677.7,2677.4,0.74686]
[1739496802905,1.64459764,2677.7,2677.3,1.1678]
[1739496802906,0.00559764,2677.7,2677.6,0.74682]
[1739496803812,0.00559764,2677.7,2677.4,0.5861]
[1739496804013,0.00559764,2677.7,2677.5,0.74684]
[1739496804317,0.75239764,2677.7,2677.4,0.5861]
[1739496804613,0.00559764,2677.7,2677.4,0.5861]
[1739496804810,0.74682,2677.6,2677.4,0.5861]
[1739496805112,0.75241764,2677.7,2677.4,0.5861]
[1739496805932,0.75239764,2677.7,2677.4,0.5861]
[1739496807005,0.00559764,2677.7,2677.4,0.5861]
[1739496807209,0.75241764,2677.7,2677.4,0.5861]
[1739496807411,0.00559764,2677.7,2677.4,1.33297]
[1739496808306,0.00559764,2677.7,2677.4,0.5861]
[1739496808712,0.74684,2677.6,2677.4,0.5861]
[1739496809119,0.00559764,2677.7,2677.4,0.5861]
[1739496809619,0.00559764,2677.7,2677.6,0.74682]
[1739496810518,0.00559764,2677.7,2677.4,0.5861]
[1739496810824,0.00559764,2677.7,2677.6,0.74682]
[1739496813822,0.75239764,2677.7,2677.5,0.74683]
[1739496814026,0.75239764,2677.7,2677.4,0.5861]
[1739496814226,0.75239764,2677.7,2677.4,1.33295]
[1739496814427,0.75239764,2677.7,2677.4,0.5861]
[1739496814628,0.75239764,2677.7,2677.5,0.74685]
[1739496814822,0.00559764,2677.7,2677.5,0.74685]
[1739496815022,0.00559764,2677.7,2677.4,0.5861]
[1739496815224,0.74684,2677.6,2677.4,0.5861]
[1739496815928,0.00559764,2677.7,2677.4,0.5861]
[1739496816129,0.00559764,2677.7,2677.3,1.1678]
[1739496816332,0.74687,2677.5,2677.3,1.1678]
[1739496816531,0.74685,2677.5,2677.3,1.1678]
[1739496816828,2.2233,2677.6,2677.4,0.74687]
[1739496817126,2.97014,2677.6,2677.3,1.9147]
[1739496817327,2.2233,2677.6,2677.3,1.1678]
[1739496817531,2.2233,2677.6,2677.4,0.74687]
[1739496817830,1.634,2677.6,2677.3,1.1678]
[1739496818128,1.634,2677.6,2677.4,0.74686]
[1739496818829,0.00559764,2677.7,2677.3,1.1678]
[1739496819031,1.63759764,2677.7,2677.5,0.74684]